bitfinex/quotes_SOLUSD_20241127
["timestamp","ask_amount","ask_price","bid_price","bid_amount"]
[1732721043600,27.15669121,238.37,238.27,5.52542481]
[1732721043802,0.44310721,238.37,238.27,5.52542481]
[1732721044099,7.78240721,238.45,238.27,5.52542481]
[1732721044272,2.9357,238.44,238.3,20.0]
[1732721044476,0.44310721,238.43,238.3,20.8369137]
[1732721045680,2.9359,238.42,238.31,4.1962]
[1732721046000,3.37900721,238.42,238.31,4.1962]
[1732721046515,23.776884,238.41,238.31,4.1962]
[1732721046804,0.44310721,238.4,238.31,4.1962]
[1732721047484,23.776884,238.38,238.28,4.1967]
[1732721047701,24.21999121,238.38,238.28,4.1967]
[1732721048494,26.713384,238.38,238.28,4.1967]
[1732721048877,2.9365,238.38,238.28,4.1967]
[1732721049100,23.776884,238.37,238.27,1.32854434]
[1732721049305,20.0,238.34,238.27,0.4914643]
[1732721049552,24.21999121,238.33,238.27,0.4914643]
[1732721049677,0.44310721,238.33,238.27,0.4914643]
[1732721050003,24.21999121,238.37,238.27,4.6882643]
[1732721050475,20.0,238.39,238.29,30.336]
[1732721050676,0.44310721,238.38,238.29,30.336]
[1732721050876,23.776884,238.39,238.29,30.336]
[1732721051081,24.21999121,238.39,238.3,0.83697322]
[1732721051383,24.21999121,238.39,238.29,30.336]
[1732721052586,2.9364,238.38,238.29,34.5325]
[1732721052786,24.21999121,238.37,238.29,34.5325]
[1732721053510,24.21999121,238.37,238.29,30.336]
[1732721054814,23.776884,238.35,238.29,30.336]
[1732721055112,24.21999121,238.35,238.29,30.336]
[1732721055810,2.9369,238.34,238.29,30.336]
[1732721056791,27.15679121,238.35,238.29,30.336]
[1732721056993,0.44310721,238.39,238.29,34.5324]
[1732721057313,3.37950721,238.39,238.29,34.5324]
[1732721057489,3.37950721,238.39,238.29,30.336]
[1732721057696,3.37950721,238.39,238.29,34.5325]
[1732721057896,3.37950721,238.39,238.29,30.336]
[1732721058206,20.0,238.36,238.29,30.336]
[1732721058390,0.44310721,238.35,238.29,30.336]
[1732721058811,24.21999121,238.35,238.29,30.336]
[1732721059916,27.15679121,238.35,238.29,30.336]
[1732721062108,2.9368,238.35,238.29,30.336]
[1732721064923,2.9368,238.35,238.27,0.4914643]
[1732721064924,20.0,238.31,238.27,0.4914643]
[1732721066213,2.9374,238.3,238.27,0.4914643]
[1732721070330,23.776884,238.29,238.27,0.4914643]
[1732721071494,20.0,238.29,238.27,0.4914643]
[1732721071700,2.9377,238.28,238.27,0.4914643]
[1732721071908,20.0,238.29,238.27,0.4914643]
[1732721072131,2.9375,238.3,238.27,0.4914643]
[1732721072621,7.3408,238.4,238.27,0.4914643]
[1732721072822,7.3408,238.4,238.28,32.5911]
[1732721073123,2.9357,238.44,238.29,0.83705489]
[1732721073302,2.9357,238.44,238.29,13.70717757]
[1732721073621,49.9,238.5,238.29,13.70717757]
[1732721073825,7.3382,238.48,238.3,4.1963]
[1732721074124,12.3382,238.48,238.29,42.83082196]
[1732721074305,23.776884,238.47,238.29,17.06662268]
[1732721074513,23.776884,238.47,238.3,12.87012268]
[1732721075028,7.3382,238.48,238.3,12.87012268]
[1732721075602,20.0,238.45,238.3,12.87012268]
[1732721075798,20.0,238.45,238.31,17.06632268]
[1732721076000,10.2734,238.48,238.32,0.83693264]
[1732721076204,10.2734,238.48,238.31,17.90314773]
[1732721076618,10.2734,238.48,238.32,12.87012268]
[1732721077127,20.0,238.45,238.33,5.03260979]
[1732721077433,20.0,238.45,238.33,4.1958]
[1732721078331,20.0,238.45,238.32,12.87012268]
[1732721078529,20.0,238.45,238.32,4.1959]
[1732721079028,20.0,238.45,238.32,17.06602268]
[1732721079215,2.9357,238.44,238.32,17.06602268]
[1732721079810,2.9357,238.44,238.32,4.1959]
[1732721080130,2.9357,238.44,238.32,17.06602268]
[1732721080330,2.9357,238.44,238.32,4.1959]
[1732721080501,2.9357,238.44,238.32,17.06602268]
[1732721080703,2.9346,238.53,238.37,20.0]
[1732721081011,2.9346,238.53,238.34,35.922784]
[1732721081012,2.9346,238.53,238.39,43.32322268]
[1732721081201,2.9346,238.53,238.4,0.83648618]
[1732721081401,2.9346,238.53,238.4,13.70660886]
[1732721081610,2.9346,238.53,238.41,25.01602268]
[1732721081807,2.9346,238.53,238.42,13.70655257]
[1732721082225,2.9346,238.53,238.42,0.83642989]
[1732721082422,7.3345,238.6,238.42,0.83642989]
[1732721082634,7.3345,238.6,238.44,4.1939]
[1732721082811,7.3345,238.6,238.45,0.83636067]
[1732721083632,20.0,238.57,238.45,0.83636067]
[1732721083822,20.0,238.57,238.45,5.03006067]
[1732721084710,2.9342,238.56,238.45,5.03006067]
[1732721084908,7.3345,238.6,238.46,29.9504]
[1732721085121,10.266,238.65,238.48,12.0304]
[1732721085431,10.266,238.65,238.49,0.83623132]
[1732721086126,7.3329,238.65,238.49,5.02913132]
[1732721086637,20.0,238.62,238.49,5.02913132]
[1732721087134,2.9336,238.61,238.48,12.0304]
[1732721087527,20.0,238.58,238.48,12.0304]
[1732721088032,20.0,238.58,238.46,29.9504]
[1732721088033,20.0,238.54,238.46,29.9504]
[1732721089126,20.0,238.54,238.46,28.90222592]
[1732721089328,20.0,238.52,238.46,28.90222592]
[1732721091240,22.9342,238.56,238.46,28.90222592]
[1732721091422,22.9342,238.56,238.46,33.09572592]
[1732721092327,2.9342,238.56,238.46,33.09572592]
[1732721092536,7.3349,238.59,238.46,33.09572592]
[1732721093520,20.0,238.58,238.46,33.09572592]
[1732721094618,2.9341,238.57,238.46,33.09572592]
[1732721095437,10.2694,238.57,238.46,28.90222592]
[1732721097039,20.0,238.54,238.46,28.90222592]
[1732721098538,23.776884,238.53,238.42,12.2553]
[1732721098763,22.9351,238.49,238.42,12.2553]
[1732721099123,20.0,238.45,238.4,32.629]
[1732721100725,2.9353,238.47,238.4,32.629]
[1732721101041,20.0,238.44,238.36,12.3514]
[1732721101824,2.9353,238.47,238.36,12.3514]
[1732721102341,2.9353,238.47,238.36,16.5466]
[1732721102550,2.9341,238.57,238.38,23.776884]
[1732721102723,7.3359,238.55,238.39,4.1948]
[1732721102927,7.3359,238.55,238.39,5.03139755]
[1732721103144,2.9341,238.57,238.4,23.776884]
[1732721103327,2.9341,238.57,238.41,32.59614928]
[1732721103643,10.2694,238.57,238.41,31.7597]
[1732721104346,20.0,238.54,238.41,31.7597]
[1732721104946,2.9346,238.53,238.42,4.1942]
[1732721105130,2.9346,238.53,238.41,31.7597]
[1732721105328,2.9346,238.53,238.41,35.9541]
[1732721108329,20.0,238.51,238.41,35.9541]
[1732721108737,2.9346,238.53,238.42,24.61339292]
[1732721109540,7.3339,238.62,238.44,23.776884]
[1732721109728,10.2674,238.62,238.47,29.7807]
[1732721109930,10.2674,238.62,238.48,0.83627253]
[1732721110943,7.3339,238.62,238.49,4.193]
[1732721111155,20.0,238.55,238.47,29.7807]
[1732721112252,20.0,238.58,238.47,29.7807]
[1732721112452,20.0,238.59,238.47,33.974]
[1732721112633,20.0,238.59,238.47,29.7807]
[1732721113037,2.934,238.58,238.47,29.7807]
[1732721113235,2.934,238.58,238.48,0.83633765]
[1732721113432,2.9338,238.6,238.5,12.128]
[1732721113632,2.9331,238.65,238.51,0.83616772]
[1732721113845,2.9331,238.65,238.53,23.776884]
[1732721114057,2.9331,238.65,238.54,0.83603541]
[1732721114431,2.9331,238.65,238.52,31.0548]
[1732721115050,24.9245,238.72,238.52,31.0548]
[1732721115354,55.11598356,238.71,238.52,31.0548]
[1732721115752,23.776884,238.7,238.52,35.2472]
[1732721115952,23.776884,238.66,238.52,35.2472]
[1732721116141,20.0,238.67,238.52,35.2472]
[1732721117096,2.933,238.66,238.52,35.2472]
[1732721117556,20.0,238.65,238.53,24.61298897]
[1732721118856,22.9332,238.65,238.54,4.1921]
[1732721119161,22.9332,238.65,238.52,35.2471]
[1732721119342,22.9332,238.65,238.53,23.776884]
[1732721120155,22.9332,238.65,238.54,4.1921]
[1732721120557,20.0,238.72,238.55,24.61294073]
[1732721120763,20.0,238.68,238.56,45.4993]
[1732721121448,20.0,238.69,238.56,45.4993]
[1732721121751,2.9327,238.68,238.57,4.1916]
[1732721122651,2.9327,238.68,238.56,49.6911]
[1732721124050,20.0,238.65,238.56,45.4993]
[1732721126068,2.9332,238.64,238.56,45.4993]
[1732721129347,49.9,238.73,238.56,49.691]
[1732721129348,2.9331,238.66,238.56,49.691]
[1732721129551,2.9324,238.71,238.57,24.61293604]
[1732721129872,2.9318,238.76,238.59,23.776884]
[1732721130165,69.5934,238.86,238.61,67.849584]
[1732721130348,69.5934,238.86,238.63,23.776884]
[1732721130349,60.1574,238.85,238.63,23.776884]
[1732721130543,16.89431805,238.84,238.64,0.83565797]
[1732721131364,20.0,238.81,238.65,4.1902]
[1732721132154,20.0,238.77,238.63,24.61257325]
[1732721132363,2.9318,238.76,238.64,4.1904]
[1732721132564,22.9318,238.76,238.64,4.1904]
[1732721132752,22.9318,238.76,238.66,30.9361]
[1732721132956,2.9318,238.76,238.67,0.83561106]
[1732721133162,2.931,238.82,238.68,12.4427]
[1732721133364,2.931,238.82,238.69,0.83555061]
[1732721133568,10.2586,238.82,238.68,12.4427]
[1732721134471,20.0,238.84,238.68,16.6323]
[1732721135370,20.0,238.8,238.68,12.4427]
[1732721136367,10.2617,238.75,238.68,12.4427]
[1732721137659,2.9319,238.75,238.68,12.4427]
[1732721139097,20.0,238.72,238.68,12.4427]
[1732721139453,23.776884,238.71,238.66,30.9361]
[1732721139678,20.0,238.68,238.62,11.949]
[1732721140553,20.0,238.66,238.62,11.949]
[1732721141360,20.0,238.66,238.62,10.949]
[1732721141957,2.9331,238.65,238.62,10.949]
[1732721142466,2.9331,238.65,238.6,30.2263]
[1732721142664,2.9331,238.65,238.51,32.1587]
[1732721142970,20.0,238.61,238.51,32.1587]
[1732721143363,20.0,238.62,238.51,32.1587]
[1732721144287,2.9336,238.61,238.51,32.1587]
[1732721144465,20.0,238.58,238.51,32.1587]
[1732721145359,20.0,238.58,238.34,23.25357039]
[1732721145360,23.776884,238.57,238.45,31.5605]
[1732721145685,20.0,238.54,238.45,31.5605]
[1732721146078,2.9341,238.57,238.45,31.5605]
[1732721146461,20.0,238.54,238.45,31.5605]
[1732721148388,2.9346,238.53,238.45,31.5605]
[1732721149668,2.9346,238.53,238.45,35.7542]
[1732721150588,20.0,238.59,238.45,35.7542]
[1732721151469,2.934,238.58,238.45,35.7542]
[1732721152201,20.0,238.55,238.45,31.5605]
[1732721153680,20.0,238.55,238.45,35.7542]
[1732721153681,2.9345,238.54,238.45,35.7542]
[1732721154387,2.9345,238.54,238.45,31.5605]
[1732721155578,12.66401401,238.51,238.45,31.5605]
[1732721156578,12.66401401,238.49,238.45,31.5605]
[1732721159886,15.59891401,238.51,238.45,31.5605]
[1732721160085,12.66401401,238.51,238.45,31.5605]
[1732721160391,12.66401401,238.53,238.46,12.66401401]
[1732721160998,12.66401401,238.55,238.46,12.66401401]
[1732721161180,12.66401401,238.51,238.45,35.7542]
[1732721161990,12.66401401,238.53,238.45,35.7542]
[1732721162187,12.66401401,238.53,238.46,12.66401401]
[1732721162690,12.66401401,238.53,238.45,35.7542]
[1732721163410,12.66401401,238.51,238.45,35.7542]
[1732721163785,12.66401401,238.53,238.45,35.7542]
[1732721164105,20.0,238.56,238.46,12.66401401]
[1732721164106,12.66401401,238.55,238.46,12.66401401]
[1732721164483,12.66401401,238.55,238.47,23.776884]
[1732721164803,12.66401401,238.59,238.5,12.66401401]
[1732721165098,12.66401401,238.61,238.52,12.66401401]
[1732721165293,12.66401401,238.63,238.54,12.66401401]
[1732721165494,12.66401401,238.65,238.58,12.66401401]
[1732721165686,12.66401401,238.67,238.59,0.83596008]
[1732721166895,12.66401401,238.67,238.59,5.02706008]
[1732721167199,15.59691401,238.67,238.59,5.02706008]
[1732721167415,12.66401401,238.67,238.6,31.9028]
[1732721167579,12.66401401,238.67,238.6,44.56681401]
[1732721167893,12.66401401,238.67,238.6,31.9028]
[1732721168096,12.66401401,238.69,238.62,24.72771401]
[1732721168308,12.66401401,238.71,238.63,0.83573463]
[1732721169310,15.59641401,238.71,238.63,5.02623463]
[1732721169494,12.66401401,238.69,238.63,0.83573463]
[1732721169801,12.66401401,238.65,238.62,12.0637]
[1732721170108,2.9324,238.71,238.62,12.0637]
[1732721170109,12.66401401,238.63,238.62,12.0637]
[1732721170405,12.66401401,238.63,238.6,31.9028]
[1732721170703,12.66401401,238.61,238.6,31.9028]
[1732721170887,12.66401401,238.61,238.57,11.9492]
[1732721171088,12.66401401,238.59,238.57,11.9492]
[1732721172483,12.66401401,238.61,238.57,11.9492]
[1732721173212,12.66401401,238.63,238.57,11.9492]
[1732721175111,12.66401401,238.61,238.57,11.9492]
[1732721175889,12.66401401,238.59,238.51,20.0]
[1732721176112,12.66401401,238.59,238.52,0.83614529]
[1732721176612,12.66401401,238.59,238.52,5.02844529]
[1732721176811,12.66401401,238.57,238.52,0.83614529]
[1732721177011,12.66401401,238.55,238.48,30.0849]
[1732721177191,12.66401401,238.49,238.48,30.0849]
[1732721177590,12.66401401,238.51,238.48,30.0849]
[1732721177896,12.66401401,238.53,238.48,30.0849]
[1732721178511,12.66401401,238.51,238.48,30.0849]
[1732721178726,2.9345,238.54,238.48,30.0849]
[1732721179012,15.59851401,238.54,238.48,30.0849]
[1732721179816,12.66401401,238.52,238.48,30.0849]
[1732721182695,12.66401401,238.54,238.48,34.278]
[1732721182895,12.66401401,238.56,238.48,34.278]
[1732721183095,15.59821401,238.56,238.48,34.278]
[1732721183315,12.66401401,238.54,238.48,30.0849]
[1732721187006,12.66401401,238.5,238.48,30.0849]
[1732721187201,12.66401401,238.5,238.42,31.0474]
[1732721187395,12.66401401,238.45,238.42,31.0474]
[1732721187629,12.66401401,238.43,238.42,31.0474]
[1732721187797,12.66401401,238.45,238.42,31.0474]
[1732721188206,10.2707,238.54,238.37,30.9719]
[1732721188207,12.66401401,238.43,238.37,30.9719]
[1732721188410,12.66401401,238.39,238.32,34.66874165]
[1732721188608,12.66401401,238.44,238.32,34.66874165]
[1732721188609,12.66401401,238.34,238.32,3.14544165]
[1732721188821,12.66401401,238.44,238.32,3.14544165]
[1732721188822,12.66401401,238.33,238.32,3.14544165]
[1732721189005,12.66401401,238.33,238.27,0.4914643]
[1732721189411,12.66401401,238.35,238.27,13.15547831]
[1732721189827,12.66401401,238.37,238.29,12.66401401]
[1732721190007,12.66401401,238.37,238.3,0.83701502]
[1732721190201,12.66401401,238.37,238.29,12.66401401]
[1732721190529,12.66401401,238.35,238.27,13.15547831]
[1732721190701,12.66401401,238.37,238.29,12.66401401]
[1732721191021,12.66401401,238.39,238.3,4.1963]
[1732721191230,12.66401401,238.39,238.31,13.50094885]
[1732721191723,12.66401401,238.41,238.33,12.66401401]
[1732721192506,12.66401401,238.41,238.33,16.85981401]
[1732721192706,15.59981401,238.44,238.35,12.0502]
[1732721193019,12.66401401,238.4,238.35,12.0502]
[1732721193329,12.66401401,238.36,238.29,16.2466]
[1732721193628,12.66401401,238.4,238.32,12.66401401]
[1732721193819,12.66401401,238.4,238.3,37.27783858]
[1732721194017,12.66401401,238.4,238.3,13.50095458]
[1732721194210,12.66401401,238.38,238.3,12.66401401]
[1732721194411,7.3386,238.47,238.32,12.66401401]
[1732721194412,12.66401401,238.4,238.32,12.66401401]
[1732721194728,12.66401401,238.39,238.31,16.86011401]
[1732721195110,12.66401401,238.39,238.31,17.6970161]
[1732721195429,12.66401401,238.41,238.34,12.66401401]
[1732721196003,12.66401401,238.43,238.35,23.776884]
[1732721196222,12.66401401,238.41,238.35,23.776884]
[1732721196622,12.66401401,238.41,238.35,27.972284]
[1732721197122,12.66401401,238.41,238.33,5.03249738]
[1732721197313,12.66401401,238.39,238.33,0.83679738]
[1732721197510,12.66401401,238.41,238.33,13.50081139]
[1732721197717,12.66401401,238.41,238.34,23.776884]
[1732721197904,12.66401401,238.43,238.34,23.776884]
[1732721198304,12.66401401,238.43,238.36,23.776884]
[1732721198526,2.9351,238.49,238.36,23.776884]
[1732721198527,12.66401401,238.45,238.36,23.776884]
[1732721198732,12.66401401,238.45,238.38,23.776884]
[1732721199521,12.66401401,238.43,238.38,23.776884]
[1732721200112,12.66401401,238.45,238.38,23.776884]
[1732721200906,12.66401401,238.45,238.39,4.1948]
[1732721202124,12.66401401,238.45,238.4,23.776884]
[1732721203126,12.66401401,238.43,238.4,23.776884]
[1732721203326,25.58991401,238.56,238.35,12.66401401]
[1732721203327,12.66401401,238.41,238.35,4.1955]
[1732721203636,12.66401401,238.41,238.35,24.1955]
[1732721203810,12.66401401,238.43,238.35,24.1955]
[1732721204726,12.66401401,238.43,238.36,23.776884]
[1732721205428,12.66401401,238.41,238.36,23.776884]
[1732721206422,12.66401401,238.41,238.37,4.1951]
[1732721206920,12.66401401,238.39,238.31,4.1961]
[1732721207315,12.66401401,238.39,238.32,0.83691345]
[1732721207631,12.66401401,238.41,238.32,13.50092746]
[1732721207815,12.66401401,238.43,238.36,12.66401401]
[1732721208224,12.66401401,238.43,238.37,23.776884]
[1732721208627,12.66401401,238.43,238.38,4.1949]
[1732721208824,12.66401401,238.43,238.39,23.776884]
[1732721209024,12.66401401,238.43,238.39,22.72862202]
[1732721209707,12.66401401,238.43,238.38,4.1949]
[1732721210123,12.66401401,238.41,238.35,4.1955]
[1732721210436,12.66401401,238.43,238.36,13.50084148]
[1732721210740,2.9346,238.54,238.42,12.66401401]
[1732721211035,12.66401401,238.51,238.43,0.83649869]
[1732721211611,12.66401401,238.51,238.44,23.776884]
[1732721212158,12.66401401,238.51,238.44,36.44089801]
[1732721212322,12.66401401,238.51,238.44,37.27728466]
[1732721212724,12.66401401,238.53,238.45,4.1937]
[1732721213331,12.66401401,238.53,238.46,24.61327225]
[1732721214032,12.66401401,238.53,238.46,23.776884]
[1732721214416,12.66401401,238.52,238.46,23.776884]
[1732721214720,12.66401401,238.52,238.45,23.776884]
[1732721214921,12.66401401,238.54,238.46,13.50036523]
[1732721215140,12.66401401,238.56,238.49,23.776884]
[1732721215512,12.66401401,238.54,238.49,23.776884]
[1732721215733,12.66401401,238.54,238.48,23.776884]
[1732721216239,12.66401401,238.54,238.49,4.193]
[1732721216815,12.66401401,238.5,238.47,34.8577]
[1732721217021,12.66401401,238.5,238.47,30.6645]
[1732721217420,12.66401401,238.5,238.47,34.8578]
[1732721218840,12.66401401,238.54,238.48,23.776884]
[1732721219654,12.66401401,238.58,238.5,23.776884]
[1732721219946,12.66401401,238.58,238.52,23.776884]
[1732721220148,12.66401401,238.58,238.53,4.1923]
[1732721220323,12.66401401,238.56,238.49,4.193]
[1732721220525,12.66401401,238.54,238.5,20.0]
[1732721221136,12.66401401,238.54,238.48,4.1932]
[1732721221343,12.66401401,238.5,238.47,30.6645]
[1732721222452,12.66401401,238.48,238.43,4.1941]
[1732721222624,12.66401401,238.45,238.43,4.1941]
[1732721222824,12.66401401,238.45,238.42,34.533]
[1732721223741,12.66401401,238.49,238.42,34.533]
[1732721224324,12.66401401,238.49,238.43,23.776884]
[1732721224522,12.66401401,238.47,238.43,23.776884]
[1732721225127,12.66401401,238.47,238.42,34.533]
[1732721225352,12.66401401,238.45,238.42,34.533]
[1732721225726,12.66401401,238.45,238.42,30.3388]
[1732721225933,12.66401401,238.43,238.36,43.3122]
[1732721226140,12.66401401,238.38,238.36,30.1428]
[1732721226335,12.66401401,238.4,238.36,34.3381]
[1732721226554,12.66401401,238.44,238.36,35.17481596]
[1732721226742,12.66401401,238.48,238.39,12.66401401]
[1732721226943,12.66401401,238.5,238.41,12.66401401]
[1732721227159,12.66401401,238.5,238.42,0.83642915]
[1732721227727,12.66401401,238.5,238.43,4.1941]
[1732721227927,12.66401401,238.48,238.45,23.776884]
[1732721228246,12.66401401,238.48,238.44,23.776884]
[1732721228835,12.66401401,238.5,238.45,4.1937]
[1732721229256,12.66401401,238.48,238.43,27.970784]
[1732721230146,2.9336,238.61,238.43,27.970784]
[1732721230354,12.66401401,238.52,238.45,23.776884]
[1732721230653,12.66401401,238.5,238.44,23.776884]
[1732721230854,12.66401401,238.52,238.44,23.776884]
[1732721231646,12.66401401,238.52,238.45,4.1937]
[1732721231846,12.66401401,238.52,238.46,23.776884]
[1732721232259,12.66401401,238.48,238.41,12.7945]
[1732721232458,12.66401401,238.48,238.42,4.1942]
[1732721232763,2.9344,238.55,238.38,12.87012268]
[1732721232764,12.66401401,238.46,238.39,4.1948]
[1732721233858,12.66401401,238.46,238.38,4.1949]
[1732721234047,12.66401401,238.46,238.39,23.776884]
[1732721234842,12.66401401,238.46,238.4,4.1946]
[1732721236869,12.66401401,238.46,238.39,23.776884]
[1732721236870,12.66401401,238.44,238.37,12.87012268]
[1732721237194,12.66401401,238.42,238.38,4.1948]
[1732721237462,12.66401401,238.44,238.38,4.1948]
[1732721237645,12.66401401,238.44,238.37,5.0318236]
[1732721237843,12.66401401,238.46,238.37,5.0318236]
[1732721238061,12.66401401,238.46,238.37,4.1951]
[1732721238244,12.66401401,238.46,238.38,23.776884]
[1732721239859,12.66401401,238.46,238.39,4.1948]
[1732721240444,12.66401401,238.44,238.4,23.776884]
[1732721240939,2.9347,238.52,238.4,23.776884]
[1732721241143,2.9347,238.52,238.36,56.23002268]
[1732721241144,12.66401401,238.42,238.38,4.1949]
[1732721241364,12.66401401,238.44,238.38,4.1949]
[1732721241943,12.66401401,238.44,238.37,4.1951]
[1732721242662,12.66401401,238.46,238.38,23.776884]
[1732721243049,12.66401401,238.48,238.4,23.776884]
[1732721243865,32.0768,238.6,238.47,12.66401401]
[1732721244069,12.66401401,238.56,238.48,27.970084]
[1732721244268,12.66401401,238.56,238.48,28.80637139]
[1732721246145,12.66401401,238.56,238.5,23.776884]
[1732721246464,12.66401401,238.58,238.5,24.61315794]
[1732721247157,12.66401401,238.56,238.5,23.776884]
[1732721247367,12.66401401,238.54,238.42,25.76419928]
[1732721247548,12.66401401,238.54,238.3,106.9728026]
[1732721247549,5.0,238.24,238.18,39.47521117]
[1732721247745,5.0,238.12,238.04,6.43e-05]
[1732721247963,5.0,237.85,237.76,4.2058]
[1732721248167,12.66401401,237.81,237.72,4.2064]
[1732721248468,12.66401401,237.81,237.66,23.18311401]
[1732721248469,143.87501803,237.81,237.75,4.206]
[1732721248664,189.49806622,237.81,237.73,0.83895639]
[1732721248969,189.49806622,237.81,237.46,21.023261]
[1732721248970,240.82399544,237.81,237.58,70.0]
[1732721249272,92.9003239,237.8,237.68,12.66401401]
[1732721249450,69.41297311,237.79,237.68,12.66401401]
[1732721249651,120.83058516,237.78,237.68,12.66401401]
[1732721249861,88.91293154,237.77,237.38,13.89135704]
[1732721250171,40.49090097,237.76,237.55,70.0]
[1732721250465,40.49090097,237.76,237.72,20.38080881]
[1732721250466,69.41297311,237.75,237.72,20.38080881]
[1732721250680,80.23630989,237.74,237.66,0.83896039]
[1732721250860,11.56882885,237.73,237.66,0.12549]
[1732721251175,91.69092932,237.72,237.66,0.51487088]
[1732721251363,116.89376877,237.71,237.68,20.0]
[1732721251559,99.9454809,237.7,237.68,20.0]
[1732721251761,7.2775001,237.69,237.68,20.0]
[1732721251959,35.77990268,237.69,237.68,40.38080881]
[1732721252188,109.7281947,237.69,237.68,40.38080881]
[1732721252583,5.0,237.96,237.74,0.12549]
[1732721252765,5.0,237.94,237.86,20.38080881]
[1732721252946,10.0,237.94,237.73,0.12549]
[1732721253269,5.0,237.97,237.9,20.38080881]
[1732721253481,5.0,237.95,237.88,20.38080881]
[1732721253770,20.38080881,237.9,237.73,4.2064]
[1732721253974,5.0,237.92,237.73,4.2064]
[1732721253975,25.38080881,237.88,237.8,23.776884]
[1732721254554,5.0,237.93,237.84,23.776884]
[1732721254555,20.38080881,237.92,237.84,23.776884]
[1732721254862,149.30616932,237.89,237.82,39.75306399]
[1732721255062,149.30616932,237.89,237.85,20.0]
[1732721255265,26.76573196,237.87,237.8,20.38080881]
[1732721255559,26.76573196,237.87,237.8,20.00000283]
[1732721255980,89.56668413,237.81,237.68,0.25098]
[1732721256182,64.91379768,237.72,237.68,0.25098]
[1732721256359,58.01349768,237.72,237.68,0.25098]
[1732721256559,44.21699768,237.72,237.68,0.25098]
[1732721257279,20.38080598,237.8,237.72,28.108974]
[1732721257480,20.38080598,237.8,237.79,44.15769281]
[1732721258883,0.33927255,237.8,237.79,44.15769281]
[1732721259561,0.33927255,237.8,237.79,48.36299281]
[1732721259870,148.51016939,237.89,237.82,20.0]
[1732721260062,0.17807983,237.87,237.84,20.0]
[1732721260262,0.17807983,237.87,237.85,38.85577961]
[1732721260559,0.17807983,237.87,237.86,44.40660526]
[1732721261084,0.17807983,237.87,237.86,83.26238487]
[1732721261863,6.4984049,237.89,237.87,4.2039]
[1732721262084,20.38080881,237.92,237.89,20.0]
[1732721262382,20.38080881,237.92,237.9,44.40660526]
[1732721262586,20.38080881,237.92,237.9,83.26238487]
[1732721263176,5.0,237.96,237.9,44.40660526]
[1732721263177,20.38080881,237.94,237.9,44.40660526]
[1732721263490,20.38080881,237.92,237.88,20.0]
[1732721263874,20.38080881,237.92,237.89,84.57635899]
[1732721264074,20.38080881,237.92,237.9,4.2034]
[1732721264696,20.38080881,237.94,237.91,39.46896753]
[1732721264899,5.0,237.95,237.92,45.10739146]
[1732721265072,11.01454527,237.93,237.92,45.10739146]
[1732721265581,11.01454527,237.93,237.92,84.57635899]
[1732721265775,41.01454527,237.93,237.92,88.77935899]
[1732721265982,20.38080881,237.98,237.95,20.0]
[1732721266365,20.38080881,238.0,237.95,20.0]
[1732721266674,20.38080881,238.02,237.97,20.0]
[1732721267086,20.38080881,238.0,237.95,20.0]
[1732721267296,20.38080881,237.98,237.95,20.0]
[1732721267877,20.38080881,237.98,237.96,4.2023]
[1732721268997,20.0,238.14,238.01,5.0]
[1732721269171,50.38080881,238.02,238.01,5.0]
[1732721271076,50.38080881,238.02,237.97,68.85400129]
[1732721271483,20.38080881,237.99,237.97,68.85400129]
[1732721271899,30.0,238.02,237.99,5.0]
[1732721271900,20.38080881,238.01,237.99,5.0]
[1732721272088,30.0,238.0,237.99,5.0]
[1732721272686,20.38080881,238.03,237.99,5.0]
[1732721272992,20.38080881,238.01,237.99,9.2018]
[1732721273193,20.38080881,238.01,237.96,20.0]
[1732721273387,19.57468167,238.0,237.96,20.0]
[1732721273596,49.57468167,237.99,237.96,20.0]
[1732721273787,19.57468167,237.98,237.96,20.0]
[1732721274093,93.36790735,237.99,237.96,20.0]
[1732721274294,93.36790735,237.99,237.97,4.2022]